fUSD/lending_fUSD_20260203
["ID","MTS","AMOUNT","RATE_DAILY","PERIOD"]
[404420216,1770126640565,-151.0,0.00015171,2]
[404420217,1770126640573,-1503.0,0.00015171,2]
[404420218,1770126640584,-151.0,0.00015171,2]
[404420219,1770126640593,-1503.0,0.00015171,2]
[404420220,1770126640602,-1503.0,0.00015171,2]
[404420221,1770126640610,-151.0,0.00015171,2]
[404420223,1770126640619,-1503.0,0.00015171,2]
[404420225,1770126640628,-151.0,0.00015171,2]
[404420227,1770126640637,-1503.0,0.00015171,2]
[404420229,1770126640646,-1503.0,0.00015171,2]
[404420231,1770126640655,-151.0,0.00015171,2]
[404420233,1770126640664,-1503.0,0.00015171,2]
[404420235,1770126640673,-151.0,0.00015171,2]
[404420237,1770126640682,-1503.0,0.00015171,2]
[404420239,1770126640691,-151.0,0.00015171,2]
[404420241,1770126640700,-151.0,0.00015171,2]
[404420243,1770126640709,-1503.0,0.00015171,2]
[404420245,1770126640718,-151.0,0.00015171,2]
[404420247,1770126640727,-151.0,0.00015171,2]
[404420249,1770126640737,-151.0,0.00015171,2]
[404420251,1770126640746,-1503.0,0.00015171,2]
[404420253,1770126640755,-1503.0,0.00015171,2]
[404420255,1770126640764,-151.0,0.00015171,2]
[404420257,1770126640773,-1503.0,0.00015171,2]
[404420259,1770126640782,-151.0,0.00015171,2]
[404420261,1770126640791,-1503.0,0.00015171,2]
[404420263,1770126640801,-1503.0,0.00015171,2]
[404420265,1770126640810,-1503.0,0.00015171,2]
[404420267,1770126640820,-1110.19,0.00015205,2]
[404420269,1770126640829,-434.82,0.00015216,2]
[404420271,1770126640838,-2736.91844375,0.00015238,2]
[404420273,1770126640847,-151.0,0.00015311,2]
[404420275,1770126640858,-151.0,0.00015311,2]
[404420277,1770126640867,-500.0,0.00015313,2]
[404420279,1770126640876,-500.0,0.00015313,2]
[404420281,1770126640885,-340.45778603,0.00015313,2]
[404420283,1770126640895,-532.40364649,0.00015313,2]
[404420285,1770126640904,-500.0,0.00015313,2]
[404420287,1770126640913,-500.0,0.00015313,2]
[404420289,1770126640923,-545.58231824,0.00015313,2]
[404420291,1770126640932,-500.0,0.00015313,2]
[404420293,1770126640941,-500.0,0.00015313,2]
[404420295,1770126640951,-500.0,0.00015313,2]
[404420297,1770126640960,-500.0,0.00015313,2]
[404420299,1770126640969,-500.0,0.00015313,2]
[404420301,1770126640978,-500.0,0.00015313,2]
[404420303,1770126640987,-371.76186134,0.00015313,2]
[404420305,1770126640996,-2147.65440152,0.00015329,2]
[404420307,1770126641005,-1110.19,0.00015479,2]
[404420309,1770126641015,-7884.0,0.00015588,2]
[404420311,1770126641023,-165.13,0.00015657,2]
[404420313,1770126641033,-150.0,0.00015675,7]
[404420315,1770126641041,-374.613885,0.00015675,7]
[404420317,1770126641050,-599.227771,0.00015675,7]
[404420319,1770126641059,-823.841657,0.00015675,7]
[404420321,1770126641069,-1048.455543,0.00015675,7]
[404420323,1770126641078,-1273.069429,0.00015675,7]
[404420325,1770126641087,-1497.683314,0.00015675,7]
[404420327,1770126641096,-1722.2972,0.00015675,7]
[404420329,1770126641105,-1946.911086,0.00015675,7]
[404420331,1770126641114,-2171.524972,0.00015675,7]
[404420333,1770126641123,-2736.91844369,0.00015682,2]
[404420335,1770126641133,-4582.52451044,0.00015692,2]
[404420337,1770126641142,-51983.55087803,0.00015715,2]
[404420340,1770126641152,-1110.19,0.00015753,2]
[404420341,1770126641161,-2258.0,0.00015839,2]
[404420343,1770126641170,-500.0,0.00015876,2]
[404420345,1770126641179,-150.01443204,0.00015933,2]
[404420347,1770126641188,-5000.0,0.0001596,2]
[404420349,1770126641199,-256.701042,0.00016,2]
[404420371,1770126641208,-1110.19,0.00016027,2]
[404420375,1770126641420,-9999.99,0.00016116,2]
[404420378,1770126641435,-2736.91844369,0.00016125,2]
[404420380,1770126641446,-1110.19,0.00016301,2]
[404420382,1770126641455,-457.87,0.00016438,2]
[404420384,1770126641466,-457.87,0.00016438,3]
[404420386,1770126641475,-457.87,0.00016438,4]
[404420388,1770126641485,-457.87,0.00016438,5]
[404420390,1770126641494,-457.87,0.00016438,6]
[404420392,1770126641503,-457.87,0.00016438,7]
[404420394,1770126641513,-457.87,0.00016438,8]
[404420396,1770126641522,-457.87,0.00016438,9]
[404420398,1770126641532,-457.87,0.00016438,10]
[404420400,1770126641541,-457.87,0.00016438,11]
[404420402,1770126641551,-457.87,0.00016438,12]
[404420404,1770126641560,-457.87,0.00016438,13]
[404420406,1770126641570,-457.87,0.00016438,14]
[404420408,1770126641579,-457.87,0.00016438,15]
[404420410,1770126641589,-457.87,0.00016438,16]
[404420412,1770126641599,-457.87,0.00016438,17]
[404420414,1770126641608,-457.87,0.00016438,18]
[404420416,1770126641618,-457.87,0.00016438,19]
[404420418,1770126641627,-457.87,0.00016438,20]
[404420420,1770126641636,-457.87,0.00016438,21]
[404420423,1770126641646,-457.87,0.00016438,21]
[404420425,1770126641655,-457.87,0.00016438,21]
[404420427,1770126641665,-457.87,0.00016438,21]
[404420429,1770126641674,-458.03207191,0.00016438,21]
[404420431,1770126641683,-775.48,0.00016438,2]
[404420433,1770126641692,-500.0,0.00016438,2]
[404420435,1770126641702,-330.22332732,0.00016438,2]
[404420437,1770126641711,-500.0,0.00016438,2]
[404420439,1770126641721,-500.0,0.00016438,2]
[404420441,1770126641731,-1770.40231788,0.00016438,2]
[404420443,1770126641740,-1770.40231788,0.00016438,2]
[404420445,1770126641750,-1770.40231788,0.00016438,2]
[404420447,1770126641759,-1770.40231788,0.00016438,2]
[404420449,1770126641769,-1770.40231788,0.00016438,2]
[404420451,1770126641778,-1770.40231788,0.00016438,2]
[404420453,1770126641788,-1770.40231788,0.00016438,2]
[404420455,1770126641798,-1770.40231788,0.00016438,2]
[404420457,1770126641807,-1770.40231788,0.00016438,2]
[404420459,1770126641816,-1770.40231788,0.00016438,2]
[404420461,1770126641826,-1770.40231788,0.00016438,2]
[404420463,1770126641835,-1770.40231788,0.00016438,2]
[404420465,1770126641846,-1770.40231788,0.00016438,2]
[404420467,1770126641855,-1770.40231788,0.00016438,2]
[404420469,1770126641865,-1770.40231788,0.00016438,2]
[404420471,1770126641875,-1770.40231788,0.00016438,2]
[404420473,1770126641884,-1770.40231788,0.00016438,2]
[404420475,1770126641894,-1770.40231788,0.00016438,2]
[404420478,1770126641905,-1770.40231788,0.00016438,2]
[404420480,1770126641916,-1770.40231788,0.00016438,2]
[404420482,1770126641926,-1770.40231788,0.00016438,2]
[404420484,1770126641936,-1770.40231788,0.00016438,2]
[404420486,1770126641946,-1770.40231788,0.00016438,2]
[404420488,1770126641956,-1770.40231788,0.00016438,2]
[404420490,1770126641965,-1770.40231788,0.00016438,2]
[404420492,1770126641974,-1770.40231788,0.00016438,2]
[404420494,1770126641983,-1770.40231788,0.00016438,2]
[404420496,1770126641992,-1770.40231788,0.00016438,2]
[404420498,1770126642002,-1770.40231788,0.00016438,2]
[404420500,1770126642011,-1770.40231788,0.00016438,2]
[404420502,1770126642020,-1770.40231788,0.00016438,2]
[404420504,1770126642031,-1770.40231788,0.00016438,2]
[404420506,1770126642040,-1770.40231788,0.00016438,2]
[404420508,1770126642050,-1770.40231788,0.00016438,2]
[404420510,1770126642059,-1770.40231788,0.00016438,2]
[404420512,1770126642069,-1770.40231788,0.00016438,2]
[404420514,1770126642078,-1770.40231788,0.00016438,2]
[404420516,1770126642088,-1770.40231788,0.00016438,2]
[404420518,1770126642097,-1770.40231788,0.00016438,2]
[404420520,1770126642107,-1770.40231788,0.00016438,2]
[404420522,1770126642116,-1770.40231788,0.00016438,2]
[404420524,1770126642125,-1770.40231788,0.00016438,2]
[404420526,1770126642135,-1770.40231788,0.00016438,2]
[404420528,1770126642144,-1770.40231788,0.00016438,2]
[404420531,1770126642155,-1770.40231788,0.00016438,2]
[404420532,1770126642164,-1770.40231788,0.00016438,2]
[404420535,1770126642173,-1770.40231788,0.00016438,2]
[404420537,1770126642183,-1770.40231788,0.00016438,2]
[404420538,1770126642191,-1770.40231788,0.00016438,2]
[404420541,1770126642201,-1770.40231788,0.00016438,2]
[404420543,1770126642212,-1770.40231788,0.00016438,2]
[404420545,1770126642221,-1770.40231788,0.00016438,2]
[404420547,1770126642231,-1770.40231788,0.00016438,2]
[404420549,1770126642246,-1770.40231788,0.00016438,2]
[404420551,1770126642257,-1770.40231788,0.00016438,2]
[404420553,1770126642266,-1770.40231788,0.00016438,2]
[404420555,1770126642275,-1770.40231788,0.00016438,2]
[404420557,1770126642285,-1770.40231788,0.00016438,2]
[404420559,1770126642295,-1770.40231788,0.00016438,2]
[404420561,1770126642305,-2753.95106134,0.00016438,2]
[404420563,1770126642316,-2753.95106134,0.00016438,2]
[404420565,1770126642326,-2753.95106134,0.00016438,2]
[404420567,1770126642335,-2753.95106134,0.00016438,2]
[404420569,1770126642345,-2753.95106134,0.00016438,2]
[404420571,1770126642354,-2753.95106134,0.00016438,2]
[404420573,1770126642363,-2753.95106134,0.00016438,2]
[404420575,1770126642372,-2753.95106134,0.00016438,2]
[404420577,1770126642381,-2753.95106134,0.00016438,2]
[404420579,1770126642391,-2753.95106134,0.00016438,2]
[404420581,1770126642399,-2753.95106134,0.00016438,2]
[404420583,1770126642408,-2753.95106134,0.00016438,2]
[404420585,1770126642418,-2753.95106134,0.00016438,2]
[404420587,1770126642427,-2753.95106134,0.00016438,2]
[404420589,1770126642436,-2753.95106134,0.00016438,2]
[404420591,1770126642445,-2753.95106134,0.00016438,2]
[404420593,1770126642455,-2753.95106134,0.00016438,2]
[404420594,1770126642463,-2753.95106134,0.00016438,2]
[404420595,1770126642472,-2753.95106134,0.00016438,2]
[404420596,1770126642481,-2753.95106134,0.00016438,2]
[404420597,1770126642490,-2753.95106134,0.00016438,2]
[404420598,1770126642499,-2753.95106134,0.00016438,2]
[404420599,1770126642508,-2753.95106134,0.00016438,2]
[404420600,1770126642517,-2753.95106134,0.00016438,2]
[404420602,1770126642527,-2753.95106134,0.00016438,2]
[404420604,1770126642536,-2868.69902223,0.00016438,2]
[404420606,1770126642545,-2868.69902223,0.00016438,2]
[404420608,1770126642555,-2868.69902223,0.00016438,2]
[404420610,1770126642564,-2868.69902223,0.00016438,2]
[404420612,1770126642574,-2868.69902223,0.00016438,2]
[404420614,1770126642584,-2868.69902223,0.00016438,2]
[404420616,1770126642593,-2868.69902223,0.00016438,2]
[404420618,1770126642602,-2868.69902223,0.00016438,2]
[404420620,1770126642611,-200.0,0.00016438,2]
[404420622,1770126642620,-900.0,0.00016438,2]
[404420624,1770126642629,-800.0,0.00016438,2]
[404420626,1770126642639,-4487.07294728,0.00016464,2]
[404420628,1770126642648,-11841.4565003,0.00016464,2]
[404420630,1770126642657,-20889.73287921,0.00016464,2]
[404420632,1770126642667,-31249.79105444,0.00016464,2]
[404420634,1770126642676,-2736.91844369,0.00016569,2]
[404420636,1770126642685,-1110.20834379,0.00016575,2]
[404420638,1770126642694,-2147.65440152,0.00016614,2]
[404420640,1770126642703,-4582.52451044,0.00016663,2]
[404420642,1770126642713,-51983.55087803,0.00016674,2]
[404420644,1770126642722,-30000.0,0.00016679,2]
[404420646,1770126642732,-165.71,0.00016712,2]
[404420648,1770126642741,-434.82,0.00016731,2]
[404420650,1770126642750,-200.0,0.00016792,2]
[404420652,1770126642760,-627.41495303,0.00016891,2]
[404420654,1770126642769,-170.0,0.00016999,2]
[404420656,1770126642779,-300.0,0.00017,2]
[404420658,1770126642789,-2736.91844369,0.00017013,2]
[404420660,1770126642798,-500.0,0.00017065,2]
[404420662,1770126642807,-500.0,0.00017096,2]
[404420664,1770126642817,-209.40437684,0.00017099,2]
[404420666,1770126642826,-277.35679052,0.00017099,2]
[404420668,1770126642836,-721.12765535,0.00017099,2]
[404420670,1770126642845,-209.40437684,0.00017099,2]
[404420672,1770126642854,-500.0,0.00017099,2]
[404420674,1770126642863,-500.0,0.00017099,2]
[404420676,1770126642872,-500.0,0.00017099,2]
[404420678,1770126642881,-500.0,0.00017099,2]
[404420680,1770126642890,-500.0,0.00017099,2]
[404420682,1770126642899,-500.0,0.00017099,2]
[404420684,1770126642909,-500.0,0.00017099,2]
[404420686,1770126642918,-500.0,0.00017099,2]
[404420688,1770126642927,-500.0,0.00017099,2]
[404420690,1770126642936,-500.0,0.00017099,2]
[404420692,1770126642946,-500.0,0.00017099,2]
[404420694,1770126642955,-322.6107,0.00017099,2]
[404420696,1770126642964,-200.0,0.00017099,2]
[404420698,1770126642974,-1000.0,0.0001714,7]
[404420700,1770126642983,-217.15233878,0.00017154,2]
[404420702,1770126642992,-150.0,0.00017178,7]
[404420704,1770126643001,-658.611442,0.00017178,7]
[404420706,1770126643011,-1167.222885,0.00017178,7]
[404420708,1770126643020,-1675.834327,0.00017178,7]
[404420710,1770126643029,-2184.44577,0.00017178,7]
[404420712,1770126643038,-2693.057212,0.00017178,7]
[404420714,1770126643047,-3201.668655,0.00017178,7]
[404420716,1770126643056,-3710.280097,0.00017178,7]
[404420718,1770126643065,-4218.89154,0.00017178,7]
[404420720,1770126643075,-4727.502982,0.00017178,7]
[404420722,1770126643085,-172.57,0.00017178,2]
[404420724,1770126643094,-160.0,0.000172,7]
[404420726,1770126643103,-225.18697532,0.00017209,2]
[404420728,1770126643112,-1000.0,0.0001726,2]
[404420730,1770126643122,-233.51889341,0.00017264,2]
[404420732,1770126643131,-164.0,0.000173,2]
[404420734,1770126643141,-242.15909246,0.00017319,2]
[404420736,1770126643150,-625.826,0.00017373,2]
[404420738,1770126643159,-1410.0,0.00017373,2]
[404420740,1770126643168,-1339.334,0.00017373,2]
[404420742,1770126643179,-3481.0,0.00017373,2]
[404420744,1770126643188,-1271.0,0.00017373,2]
[404420746,1770126643197,-568.0,0.00017373,2]
[404420748,1770126643206,-6580.0,0.00017373,2]
[404420750,1770126643215,-251.11897888,0.00017374,2]
[404420752,1770126643225,-1500.0,0.000174,2]
[404420754,1770126643234,-2953.0,0.00017423,2]
[404420756,1770126643248,-260.4103811,0.00017429,2]
[404420758,1770126643257,-839.0,0.00017452,2]
[404420760,1770126643267,-2736.91844369,0.00017456,2]
[404420762,1770126643277,-42282.0783,0.00017464,2]
[404420764,1770126643286,-1265.13779333,0.00017479,2]
[404420766,1770126643295,-270.0455652,0.00017484,2]
[404420768,1770126643305,-1500.0,0.000175,2]
[404420770,1770126643316,-200.0,0.000175,6]
[404420772,1770126643325,-1234.19,0.00017511,2]
[404420774,1770126643334,-916.59,0.00017511,2]
[404420776,1770126643343,-1233.94,0.00017511,2]
[404420778,1770126643352,-1233.94,0.00017511,2]
[404420780,1770126643362,-1256.38,0.00017511,2]
[404420782,1770126643371,-3010.052,0.00017534,2]
[404420784,1770126643380,-1000.0,0.00017534,2]
[404420786,1770126643389,-280.03725112,0.00017539,2]
[404420788,1770126643398,-1265.13779333,0.00017562,2]
[404420790,1770126643407,-290.39862941,0.00017594,2]
[404420792,1770126643416,-200.0,0.000176,6]
[404420794,1770126643425,-1265.13779333,0.00017616,2]
[404420796,1770126643434,-51983.55087803,0.00017633,2]
[404420798,1770126643443,-4582.52451044,0.00017633,2]
[404420800,1770126643452,-313.52,0.00017639,2]
[404420802,1770126643462,-1208.52677438,0.0001764,2]
[404420804,1770126643471,-217.15233878,0.00017647,2]
[404420806,1770126643480,-287.61899177,0.00017647,2]
[404420808,1770126643489,-200.0,0.00017647,2]
[404420810,1770126643499,-301.1433787,0.00017649,2]
[404420812,1770126643508,-1265.13779333,0.00017699,2]
[404420814,1770126643518,-3393.83018374,0.000177,2]
[404420816,1770126643527,-200.0,0.000177,6]
[404420819,1770126643536,-1500.0,0.000177,2]
[404420821,1770126643546,-540.05504507,0.00017723,2]
[404420823,1770126643554,-151.0,0.0001773,2]
[404420825,1770126643564,-1000.0,0.00017733,2]
[404420827,1770126643573,-1000000.0,0.00017733,2]
[404420829,1770126643582,-10140.7131,0.00017733,2]
[404420830,1770126643591,-2617.0576,0.00017733,2]
[404420833,1770126643601,-33292.3487,0.00017733,2]
[404420836,1770126643610,-7798.7438,0.00017733,2]
[404420838,1770126643619,-1265.13779333,0.00017753,2]
[404420841,1770126643628,-5888.0,0.00017793,2]
[404420843,1770126643637,-164.0,0.000178,2]
[404420845,1770126643645,-200.0,0.000178,6]
[404420847,1770126643654,-1000.0,0.00017808,2]
[404420849,1770126643664,-150.0,0.00017808,2]
[404420851,1770126643673,-5888.0,0.00017833,2]
[404420853,1770126643683,-1265.13779333,0.00017836,2]
[404420855,1770126643692,-5888.0,0.00017854,2]
[404420856,1770126643701,-200.0,0.00017855,2]
[404420858,1770126643711,-1000.0,0.00017855,7]
[404420860,1770126643720,-200.0,0.00017856,2]
[404420863,1770126643730,-5888.0,0.00017858,2]
[404420865,1770126643740,-1233.94,0.0001789,2]
[404420867,1770126643749,-1265.13779333,0.0001789,2]
[404420869,1770126643758,-25000.0,0.00017891,3]
[404420871,1770126643767,-5000.0,0.000179,2]
[404420873,1770126643776,-10000.0,0.000179,2]
[404420875,1770126643785,-853.2605983,0.000179,3]
[404420877,1770126643794,-2736.91844369,0.000179,2]
[404420879,1770126643803,-25000.0,0.000179,3]
[404420881,1770126643812,-160.0,0.000179,3]
[404420883,1770126643822,-770.0,0.000179,6]
[404420885,1770126643831,-269.09178599,0.000179,2]
[404420886,1770126643840,-2147.65440152,0.000179,2]
[404420889,1770126643849,-1500.0,0.000179,2]
[404420891,1770126643858,-500.0,0.000179,2]
[404420893,1770126643867,-500.0,0.000179,2]
[404420895,1770126643877,-500.0,0.000179,2]
[404420897,1770126643886,-500.0,0.000179,2]
[404420899,1770126643895,-500.0,0.000179,2]
[404420901,1770126643905,-500.0,0.000179,2]
[404420903,1770126643914,-500.0,0.000179,2]
[404420905,1770126643923,-500.0,0.000179,2]
[404420907,1770126643932,-500.0,0.000179,2]
[404420909,1770126643941,-500.0,0.000179,2]
[404420911,1770126643951,-500.0,0.000179,2]
[404420913,1770126643960,-500.0,0.000179,2]
[404420915,1770126643969,-500.0,0.000179,2]
[404420917,1770126643978,-500.0,0.000179,2]
[404420919,1770126643988,-500.0,0.000179,2]
[404420921,1770126643997,-500.0,0.000179,2]
[404420923,1770126644006,-329.15243557,0.000179,2]
[404420925,1770126644015,-19503.0,0.000179,2]
[404420927,1770126644024,-1265.13779333,0.00017973,2]
[404420929,1770126644033,-81602.8566217,0.00017986,2]
[404420931,1770126644042,-4667.3348798,0.00017986,2]
[404420933,1770126644051,-3500.5011598,0.00017986,2]
[404420935,1770126644060,-143445.1356674,0.00017986,2]
[404420937,1770126644069,-101363.434198,0.00017986,2]
[404420939,1770126644078,-2625.3758699,0.00017986,2]
[404420941,1770126644087,-170.0,0.0001799,2]
[404420943,1770126644096,-151.0,0.00017997,2]
[404420945,1770126644106,-1000.0,0.00017999,2]
[404420947,1770126644115,-300.0,0.00017999,2]
[404420949,1770126644124,-300.0,0.00017999,2]
[404420951,1770126644133,-300.0,0.00017999,2]
[404420953,1770126644142,-174.61919141,0.00017999,4]
[404420955,1770126644151,-300.0,0.00017999,2]
[404420957,1770126644161,-181.08010149,0.00017999,4]
[404420959,1770126644170,-578.20924308,0.00017999,4]
[404420961,1770126644179,-187.78006525,0.00017999,4]
[404420963,1770126644189,-599.60298507,0.00017999,4]
[404420965,1770126644198,-194.72792766,0.00017999,4]
[404420966,1770126644208,-621.78829552,0.00017999,4]
[404420967,1770126644216,-201.93286099,0.00017999,4]
[404420968,1770126644225,-644.79446246,0.00017999,4]
[404420969,1770126644235,-209.40437684,0.00017999,4]
[404420970,1770126644248,-404.1693775,0.00017999,4]
[404420971,1770126644257,-217.15233878,0.00017999,4]
[404420972,1770126644266,-225.18697532,0.00017999,4]
[404420973,1770126644275,-233.51889341,0.00017999,4]
[404420974,1770126644285,-242.15909246,0.00017999,4]
[404420975,1770126644294,-251.11897888,0.00017999,4]
[404420976,1770126644302,-260.4103811,0.00017999,4]
[404420977,1770126644314,-270.0455652,0.00017999,4]
[404420978,1770126644323,-280.03725112,0.00017999,4]
[404420979,1770126644333,-290.39862941,0.00017999,4]
[404420980,1770126644342,-301.1433787,0.00017999,4]
[404420981,1770126644351,-30573.01867535,0.00018,2]
[404420982,1770126644372,-281.55,0.00018,2]
[404420983,1770126644388,-3253.0,0.00017373,2]
[404420984,1770126644397,-122.5170958,0.00018,2]
[404420985,1770126644416,-2152.46110398,0.00018,2]
[404420986,1770126644427,-597.05296577,0.00018,2]
[404420987,1770126644443,-696.05560694,0.00018,2]
[404420988,1770126644454,-7043.98864909,0.00018,2]
[404420989,1770126644464,-1691.06524236,0.00018,2]
[404420990,1770126644476,-3451.43519298,0.00018,2]
[404420991,1770126644488,-29029.90995989,0.00018,2]
[404420992,1770126644710,-2266.94355509,0.00018,2]
[404420993,1770126644850,-5307.59413277,0.00018,2]
[404420994,1770126644896,-7428432.46128505,0.00018,2]
[404420995,1770126644907,-609.6,0.00018,2]
[404420999,1770126646180,-150.01443204,9.254e-05,2]
[404421000,1770126646189,-122.83556796,0.0001041,2]
[404421001,1770126646201,-27.17886408,0.0001041,2]
[404421002,1770126646211,-150.01443204,0.00012724,2]
[404421003,1770126646220,-150.01443204,0.0001388,2]
[404421004,1770126646230,-150.01443204,0.00015037,2]
[404421005,1770126646242,-150.01443204,0.00016193,2]
[404421006,1770126646254,-150.01443204,0.0001735,2]
[404421007,1770126646264,-6364.14166135,0.00018,2]
[404421012,1770126752044,183.0408,8.213e-05,2]
[404421013,1770126856274,-150.0,8.842e-05,2]
[404421014,1770126856297,-300.0,8.842e-05,2]
[404421015,1770126856322,-250.0,8.842e-05,2]
[404421016,1770126856344,-4800.0,8.843e-05,2]
[404421017,1770127543697,500.0,0.00021,30]
[404421018,1770127591376,500.82,0.00021,30]
[404421019,1770127624486,524.0,0.00021,30]
[404421020,1770127822377,713.29,8.219e-05,2]
[404421022,1770127831926,-151.0,8.522e-05,2]
[404421023,1770127831937,-99.0,8.524e-05,2]
[404421024,1770127831952,-201.0,8.524e-05,2]
[404421025,1770127831962,-150.0,8.524e-05,2]
[404421026,1770127831971,-224.75,8.524e-05,2]
[404421027,1770127831982,-975.25,8.524e-05,2]
[404421028,1770127831992,-300.0,8.524e-05,2]
[404421029,1770127832001,-250.0,8.524e-05,2]
[404421030,1770127832011,-300.0,8.524e-05,2]
[404421031,1770127832020,-300.0,8.524e-05,2]
[404421032,1770127832029,-1889.66882657,8.525e-05,2]
[404421033,1770127832040,-433.32489386,8.525e-05,2]
[404421034,1770127832051,-156684.14244409,8.525e-05,2]
[404421035,1770127832062,-27901.01085008,8.525e-05,2]
[404421036,1770127832073,-14851.41607062,8.525e-05,2]
[404421037,1770127832084,-38370.95056255,8.525e-05,2]
[404421038,1770127832095,-15850.15732066,8.525e-05,2]
[404421039,1770127832106,-2738.33598373,8.525e-05,2]
[404421040,1770127832116,-501.00324206,8.525e-05,2]
[404421041,1770127832128,-2031.76104923,8.525e-05,2]
[404421042,1770127832139,-8837.15001958,8.525e-05,2]
[404421043,1770127832150,-2162.61598113,8.525e-05,2]
[404421044,1770127832161,-1864.3836981,8.525e-05,2]
[404421045,1770127832175,-1245.58737072,8.525e-05,2]
[404421046,1770127832187,-1398.56766829,8.525e-05,2]
[404421064,1770127838281,-3223239.92401873,8.525e-05,2]
[404421065,1770127838291,-1000000.0,8.526e-05,2]
[404421066,1770127838301,-500.0,8.6e-05,3]
[404421067,1770127838311,-257.44644732,8.6e-05,2]
[404421069,1770127838320,-500.0,8.603e-05,2]
[404421071,1770127838329,-367.18436696,8.613e-05,2]
[404421073,1770127838338,-333.04718937,8.624e-05,2]
[404421074,1770127838347,-320.60965673,8.625e-05,2]
[404421076,1770127838357,-239.36272721,8.625e-05,2]
[404421078,1770127838366,-500.0,8.625e-05,2]
[404421080,1770127838375,-500.0,8.625e-05,2]
[404421082,1770127838385,-500.0,8.625e-05,2]
[404421084,1770127838393,-618.70246796,8.625e-05,2]
[404421085,1770127838403,-500.0,8.625e-05,2]
[404421087,1770127838413,-500.0,8.625e-05,2]
[404421089,1770127838422,-500.0,8.625e-05,2]
[404421091,1770127838431,-500.0,8.625e-05,2]
[404421093,1770127838440,-500.0,8.625e-05,2]
[404421095,1770127838450,-500.0,8.625e-05,2]
[404421096,1770127838458,-500.0,8.625e-05,2]
[404421098,1770127838467,-500.0,8.625e-05,2]
[404421100,1770127838477,-500.0,8.625e-05,2]
[404421102,1770127838486,-500.0,8.625e-05,2]
[404421104,1770127838495,-350.0,8.625e-05,2]
[404421106,1770127838504,-500.0,8.625e-05,2]
[404421108,1770127838513,-500.0,8.625e-05,2]
[404421109,1770127838522,-500.0,8.625e-05,2]
[404421111,1770127838532,-500.0,8.625e-05,2]
[404421113,1770127838541,-500.0,8.625e-05,2]
[404421115,1770127838551,-500.0,8.625e-05,2]
[404421117,1770127838560,-500.0,8.625e-05,2]
[404421119,1770127838569,-500.0,8.625e-05,2]
[404421121,1770127838578,-500.0,8.625e-05,2]
[404421123,1770127838588,-355.14044803,8.625e-05,2]
[404421125,1770127838597,-500.0,8.625e-05,2]
[404421126,1770127838606,-500.0,8.625e-05,2]
[404421128,1770127838615,-333.04718936,8.632e-05,2]
[404421130,1770127838624,-151.0,8.64e-05,2]
[404421132,1770127838634,-333.04718936,8.64e-05,2]
[404421134,1770127838644,-4122.6247,8.643e-05,2]
[404421136,1770127838656,-89306.5331,8.643e-05,2]
[404421137,1770127838665,-2544.7096,8.643e-05,2]
[404421138,1770127838675,-500.0,8.643e-05,2]
[404421139,1770127838684,-713.29,8.676e-05,2]
[404421140,1770127838695,-1000.0,8.7e-05,3]
[404421141,1770127838704,-61542.61000504,8.726e-05,2]
[404421142,1770127838714,-299.99,8.726e-05,2]
[404421143,1770127838723,-1000.0,8.726e-05,2]
[404421144,1770127838735,-150.99,8.726e-05,2]
[404421145,1770127838744,-150.99,8.726e-05,2]
[404421146,1770127838754,-999.99,8.726e-05,2]
[404421147,1770127838763,-9999.99,8.734e-05,2]
[404421148,1770127838773,-9999.99,8.734e-05,2]
[404421149,1770127838783,-1000.0,8.742e-05,2]
[404421151,1770127838792,-3102.843,8.742e-05,2]
[404421153,1770127838802,-313.52,8.742e-05,2]
[404421155,1770127838812,-1500.0,8.8e-05,3]
[404421157,1770127838821,-150.01399847,8.841e-05,2]
[404421159,1770127838831,-5200.0,8.843e-05,2]
[404421161,1770127838840,-2000.0,8.9e-05,3]